bitfinex-derivatives/quotes_BNBF0:USTF0_20250303
["timestamp","ask_amount","ask_price","bid_price","bid_amount"]
[1740960281135,1.53483084,622.56,620.17,1.189564]
[1740960281333,1.83020874,622.55,620.17,1.189564]
[1740960281535,1.83020874,622.54,620.17,1.189564]
[1740960281836,1.83020874,622.53,620.17,1.189564]
[1740960282132,1.83020874,622.52,620.17,1.189564]
[1740960282335,1.53483084,622.58,620.17,1.189564]
[1740960282637,0.961,622.59,620.17,1.189564]
[1740960282836,0.961,622.59,620.21,1.189564]
[1740960283937,1.53678846,622.58,620.21,1.189564]
[1740960284133,1.53678846,622.57,620.21,1.189564]
[1740960284335,0.961,622.59,620.21,1.189564]
[1740960284336,1.53678846,622.56,620.21,1.189564]
[1740960284530,1.53678846,622.55,620.21,1.189564]
[1740960284731,1.53678846,622.54,620.21,1.189564]
[1740960285035,1.53678846,622.53,620.21,1.189564]
[1740960285243,1.53678846,622.58,620.3,1.189564]
[1740960285435,1.83215843,622.57,620.3,1.189564]
[1740960285639,1.83215843,622.56,620.3,1.189564]
[1740960285834,1.53678846,622.55,620.3,1.189564]
[1740960286034,1.83215489,622.54,620.3,1.189564]
[1740960286234,1.83215489,622.53,620.3,1.189564]
[1740960286440,1.83215489,622.52,620.3,1.189564]
[1740960286642,1.83215489,622.51,620.3,1.189564]
[1740960286939,1.53678846,622.5,620.3,1.189564]
[1740960287142,1.53678846,622.54,620.3,1.189564]
[1740960287334,1.53678846,622.53,620.3,1.189564]
[1740960287540,0.29536038,622.53,620.3,1.189564]
[1740960287741,1.53678846,622.53,620.3,1.189564]
[1740960287941,0.209,622.55,620.55,1.189564]
[1740960288335,1.241,622.54,620.55,1.189564]
[1740960288841,2.7779363,622.54,620.55,1.189564]
[1740960289041,1.5369363,622.53,620.55,1.189564]
[1740960289336,1.241,622.54,620.55,1.189564]
[1740960290140,1.241,622.54,620.73,1.189564]
[1740960290440,1.241,622.54,620.75,0.32219089]
[1740960290843,0.989,622.53,620.75,0.32219089]
[1740960292742,0.989,622.53,620.92,1.189564]
[1740960292943,0.991,622.52,620.94,0.32209231]
[1740960294239,1.264,622.51,620.94,0.32209231]
[1740960294838,1.264,622.51,620.98,1.189564]
[1740960295042,1.264,622.51,621.0,0.32206119]
[1740960297745,1.264,622.51,621.03,1.189564]
[1740960297943,1.264,622.51,621.05,0.32203526]
[1740960307264,0.209,622.5,621.05,0.32203526]
[1740960307563,0.209,622.5,621.11,1.189564]
[1740960307958,0.209,622.5,621.13,0.32199378]
[1740960308164,1.057,622.49,621.13,0.32199378]
[1740960309966,1.057,622.49,621.28,1.189564]
[1740960310262,1.057,622.49,621.3,0.32190568]
[1740960313266,1.057,622.49,621.34,1.189564]
[1740960313764,1.256,622.48,621.34,1.189564]
[1740960313964,1.256,622.48,621.36,0.32187459]
[1740960319567,1.43,622.47,621.36,0.32187459]
[1740960320070,2.98570058,622.47,621.36,0.32187459]
[1740960320665,1.55415715,622.46,621.36,0.32187459]
[1740960320868,2.98415715,622.47,621.36,0.32187459]
[1740960322069,0.978,622.46,621.36,0.32187459]
[1740960322572,1.35,622.45,621.36,0.32187459]
[1740960326572,1.56,622.45,621.36,0.32187459]
[1740960326775,3.1125203,622.45,621.36,0.32187459]
[1740960327074,1.56,622.45,621.36,0.32187459]
[1740960335485,2.617,622.45,621.36,0.32187459]
[1740960345687,3.599,622.45,621.36,0.32187459]
[1740960346592,3.599,622.45,621.44,1.189564]
[1740960346987,3.599,622.45,621.46,0.3218228]
[1740960349389,3.599,622.45,621.42,1.189564]
[1740960351396,3.599,622.45,621.45,1.189564]
[1740960353693,3.599,622.45,621.54,1.189564]
[1740960356091,3.599,622.45,621.42,1.189564]
[1740960358093,3.599,622.45,621.35,1.189564]
[1740960360496,4.863,622.45,621.35,1.189564]
[1740960360697,4.863,622.45,621.23,1.189564]
[1740960362495,4.863,622.45,621.35,1.189564]
[1740960366099,4.863,622.45,621.73,1.189564]
[1740960368603,4.863,622.45,621.66,1.189564]
[1740960371205,4.863,622.45,621.61,1.189564]
[1740960372905,4.863,622.45,621.27,1.189564]
[1740960375207,4.863,622.45,621.43,1.189564]
[1740960377309,4.863,622.45,621.72,1.189564]
[1740960379109,4.863,622.45,621.82,1.189564]
[1740960382310,4.863,622.45,621.58,1.189564]
[1740960382510,4.863,622.45,621.6,0.32175032]
[1740960387009,6.244,622.45,621.6,0.32175032]
[1740960423249,1.5316028,622.44,621.6,0.32175032]
[1740960423849,1.5316028,623.69,621.6,0.32175032]
[1740960424050,1.82707562,623.68,621.6,0.32175032]
[1740960424252,1.82707562,623.67,621.6,0.32175032]
[1740960424549,1.4250189,623.36,621.6,0.32175032]
[1740960424848,1.82707562,623.35,621.6,0.32175032]
[1740960425058,0.32085733,623.33,621.6,0.32175032]
[1740960425257,1.82707562,623.32,621.6,0.32175032]
[1740960425453,0.32087277,623.3,621.6,0.32175032]
[1740960425657,1.82707562,623.29,621.6,0.32175032]
[1740960425852,1.5316028,623.28,621.6,0.32175032]
[1740960426058,1.82707562,623.27,621.6,0.32175032]
[1740960426258,1.82707562,623.26,621.6,0.32175032]
[1740960426456,0.32090366,623.24,621.6,0.32175032]
[1740960426658,1.82707562,623.23,621.6,0.32175032]
[1740960426858,0.32091911,623.21,621.6,0.32175032]
[1740960427058,1.82707562,623.2,621.6,0.32175032]
[1740960427259,0.32093456,623.18,621.6,0.32175032]
[1740960427459,1.82707562,623.17,620.38,1.189564]
[1740960427759,0.32100667,623.04,620.51,0.32231551]
[1740960427961,1.82707562,623.03,620.51,0.32231551]
[1740960428162,0.32102213,623.01,620.51,0.32231551]
[1740960428460,1.82707562,623.0,620.51,0.32231551]
[1740960428756,1.82707562,622.99,620.51,0.32231551]
[1740960428961,1.82707562,622.98,620.51,0.32231551]
[1740960429260,0.3210479,622.96,620.51,0.32231551]
[1740960429461,1.82707562,622.95,620.51,0.32231551]
[1740960429661,1.82707562,622.94,620.51,0.32231551]
[1740960429856,1.82707562,622.93,620.51,0.32231551]
[1740960430054,1.82707562,622.92,620.51,0.32231551]
[1740960430262,0.32107882,622.9,620.51,0.32231551]
[1740960430560,1.82707562,622.89,620.51,0.32231551]
[1740960430860,1.82707562,622.88,620.51,0.32231551]
[1740960431057,1.82707562,622.87,620.51,0.32231551]
[1740960431261,1.82707562,622.86,620.51,0.32231551]
[1740960431556,1.82707562,622.85,620.51,0.32231551]
[1740960431761,1.82707562,622.84,620.51,0.32231551]
[1740960431957,0.32107882,622.9,620.51,0.32231551]
[1740960431958,1.82707562,622.83,620.51,0.32231551]
[1740960432160,0.32107882,622.9,620.51,0.32231551]
[1740960432161,1.82707562,622.82,620.51,0.32231551]
[1740960432461,1.82718631,622.81,620.51,0.32231551]
[1740960432666,2.14831668,622.8,620.51,0.32231551]
[1740960432863,0.32114069,622.78,620.51,0.32231551]
[1740960433065,1.82718631,622.77,620.51,0.32231551]
[1740960433265,0.32115616,622.75,620.51,0.32231551]
[1740960433460,1.82718631,622.74,620.51,0.32231551]
[1740960433659,0.32115616,622.75,620.51,0.32231551]
[1740960433660,0.32117163,622.72,620.51,0.32231551]
[1740960433864,1.82718631,622.71,620.51,0.32231551]
[1740960434069,0.3211871,622.69,620.51,0.32231551]
[1740960434368,1.82723809,622.68,620.51,0.32231551]
[1740960434566,0.32120258,622.66,620.51,0.32231551]
[1740960434867,1.82723809,622.65,620.51,0.32231551]
[1740960435067,2.14845098,622.64,620.51,0.32231551]
[1740960435263,1.82723809,622.63,620.51,0.32231551]
[1740960435462,2.1484613,622.62,620.51,0.32231551]
[1740960435665,2.14846646,622.61,620.51,0.32231551]
[1740960435866,2.14847162,622.6,620.51,0.32231551]
[1740960436062,1.82723809,622.59,620.51,0.32231551]
[1740960436267,1.82723809,622.58,620.51,0.32231551]
[1740960436469,2.1484871,622.57,620.51,0.32231551]
[1740960436666,0.61677877,622.56,620.51,0.32231551]
[1740960436871,0.2955246,622.55,620.51,0.32231551]
[1740960438171,1.82723809,622.55,620.51,0.32231551]
[1740960438371,0.2955246,622.54,620.51,0.32231551]
[1740960438569,0.2955246,622.53,620.51,0.32231551]
[1740960438769,0.2955246,622.52,620.51,0.32231551]
[1740960438967,0.2955246,622.51,620.51,0.32231551]
[1740960439167,0.2955246,622.5,620.51,0.32231551]
[1740960439365,0.2955246,622.49,620.51,0.32231551]
[1740960440367,1.85300895,622.48,620.51,0.32231551]
[1740960440566,0.29550478,622.47,620.51,0.32231551]
[1740960440765,1.53171349,622.46,620.51,0.32231551]
[1740960440972,0.32129546,622.48,620.51,0.32231551]
[1740960440973,1.82721827,622.45,620.51,0.32231551]
[1740960441173,1.82721827,622.44,620.51,0.32231551]
[1740960441374,1.82721827,622.43,620.51,0.32231551]
[1740960441673,1.82721827,622.42,620.51,0.32231551]
[1740960441867,1.82721827,622.41,620.51,0.32231551]
[1740960442068,1.82721827,622.4,620.51,0.32231551]
[1740960442273,1.82721827,622.39,620.51,0.32231551]
[1740960442575,1.82721827,622.38,620.51,0.32231551]
[1740960442775,1.82721827,622.37,620.51,0.32231551]
[1740960443070,1.82721827,622.36,620.51,0.32231551]
[1740960443274,1.82721827,622.35,620.51,0.32231551]
[1740960443472,1.82721827,622.34,620.51,0.32231551]
[1740960443668,1.82721827,622.33,620.51,0.32231551]
[1740960443872,1.82721827,622.32,620.51,0.32231551]
[1740960444074,1.82721827,622.31,620.51,0.32231551]
[1740960444272,1.82721827,622.3,620.51,0.32231551]
[1740960444471,1.82721827,622.29,620.51,0.32231551]
[1740960444674,1.82721827,622.28,620.51,0.32231551]
[1740960444874,1.82721827,622.27,620.51,0.32231551]
[1740960445076,0.32141422,622.25,620.51,0.32231551]
[1740960445270,1.82721827,622.24,620.51,0.32231551]
[1740960445473,1.82721827,622.23,620.51,0.32231551]
[1740960445671,0.32143488,622.21,620.51,0.32231551]
[1740960445878,1.82721827,622.2,620.51,0.32231551]
[1740960446077,1.82721827,622.19,620.51,0.32231551]
[1740960446279,1.82721827,622.18,620.51,0.32231551]
[1740960446476,1.82721827,622.17,620.51,0.32231551]
[1740960446680,1.82721827,622.16,620.51,0.32231551]
[1740960446880,1.82721827,622.15,620.51,0.32231551]
[1740960447072,0.32143488,622.21,620.51,0.32231551]
[1740960447073,1.82721827,622.14,620.51,0.32231551]
[1740960447276,1.82721827,622.13,620.51,0.32231551]
[1740960447476,1.82721827,622.12,620.51,0.32231551]
[1740960447671,1.82721827,622.11,620.51,0.32231551]
[1740960447875,1.82721827,622.1,620.51,0.32231551]
[1740960448078,1.82721827,622.09,620.51,0.32231551]
[1740960448280,1.82721827,622.08,620.51,0.32231551]
[1740960448583,1.82721827,622.07,620.51,0.32231551]
[1740960448777,1.82669353,622.06,620.51,0.32231551]
[1740960448981,1.82669353,622.05,620.51,0.32231551]
[1740960449184,1.82669353,622.04,620.51,0.32231551]
[1740960449383,1.82669353,622.03,620.51,0.32231551]
[1740960449682,0.29550478,622.02,620.51,0.32231551]
[1740960449882,0.29550478,622.01,620.51,0.32231551]
[1740960450078,0.93,622.08,620.51,0.32231551]
[1740960450079,0.29550478,622.07,620.51,0.32231551]
[1740960450385,0.29550478,622.06,620.51,0.32231551]
[1740960450577,0.29550478,622.05,620.51,0.32231551]
[1740960450781,0.93,622.08,620.51,0.32231551]
[1740960450782,0.29550478,622.04,620.51,0.32231551]
[1740960450984,0.93,622.08,620.51,0.32231551]
[1740960450985,0.29550478,622.07,620.51,0.32231551]
[1740960451281,0.29550478,622.06,620.51,0.32231551]
[1740960451481,0.29550478,622.05,620.51,0.32231551]
[1740960451683,1.82669353,622.07,620.51,0.32231551]
[1740960451882,0.29550478,622.06,620.51,0.32231551]
[1740960452075,0.32151756,622.05,620.51,0.32231551]
[1740960452478,0.29550478,622.04,620.51,0.32231551]
[1740960452880,1.057,622.03,620.51,0.32231551]
[1740960453078,0.29550478,622.02,620.51,0.32231551]
[1740960453680,1.53172712,622.01,620.51,0.32231551]
[1740960453977,1.82791391,622.0,620.51,0.32231551]
[1740960454179,1.82791391,621.99,620.51,0.32231551]
[1740960454378,1.82791391,621.98,620.51,0.32231551]
[1740960454577,1.82791391,621.97,620.51,0.32231551]
[1740960454783,1.82791391,621.96,620.51,0.32231551]
[1740960455079,2.1497519,621.95,620.51,0.32231551]
[1740960455286,0.29577352,621.94,620.51,0.32231551]
[1740960457281,0.32157959,621.93,620.51,0.32231551]
[1740960457484,0.29577352,621.92,620.51,0.32231551]
[1740960457880,0.53158994,621.91,620.51,0.32231551]
[1740960458081,0.29577352,621.9,620.51,0.32231551]
[1740960458386,0.29575468,621.89,620.51,0.32231551]
[1740960458586,0.29575468,621.88,620.51,0.32231551]
[1740960458789,0.29575468,621.9,620.51,0.32231551]
[1740960458987,1.82816381,621.89,620.51,0.32231551]
[1740960459186,1.82816381,621.88,620.51,0.32231551]
[1740960459385,1.82816381,621.87,620.51,0.32231551]
[1740960459586,0.29575468,621.86,620.51,0.32231551]
[1740960459788,0.32162096,621.85,620.51,0.32231551]
[1740960459990,0.29575468,621.84,620.51,0.32231551]
[1740960460191,0.32163131,621.83,620.51,0.32231551]
[1740960460385,0.29575468,621.82,620.51,0.32231551]
[1740960460584,0.32164165,621.81,620.51,0.32231551]
[1740960460791,0.29575468,621.8,620.51,0.32231551]
[1740960461691,0.29583749,621.79,620.51,0.32231551]
[1740960461889,0.29583749,621.8,620.51,0.32231551]
[1740960462086,0.29583749,621.79,620.51,0.32231551]
[1740960462286,0.29583749,621.78,620.51,0.32231551]
[1740960462592,0.29583749,621.77,620.51,0.32231551]
[1740960462792,0.29583749,621.8,620.51,0.32231551]
[1740960462990,0.29583749,621.79,620.51,0.32231551]
[1740960463191,0.29583607,621.78,620.51,0.32231551]
[1740960463387,0.32166235,621.77,620.51,0.32231551]
[1740960463593,0.29583607,621.76,620.51,0.32231551]
[1740960463787,0.32167269,621.75,620.51,0.32231551]
[1740960463991,0.29583607,621.74,620.51,0.32231551]
[1740960464591,0.32168304,621.73,620.51,0.32231551]
[1740960464794,0.29583607,621.72,620.51,0.32231551]
[1740960465288,0.32168304,621.73,620.51,0.32231551]
[1740960465692,0.29578711,621.72,620.51,0.32231551]
[1740960466092,0.32168304,621.73,620.51,0.32231551]
[1740960467994,0.29586491,621.72,620.51,0.32231551]
[1740960468290,0.32169339,621.71,620.51,0.32231551]
[1740960468494,0.29586491,621.7,620.51,0.32231551]
[1740960469088,0.32170374,621.69,620.51,0.32231551]
[1740960469288,0.29586491,621.68,620.51,0.32231551]
[1740960469492,0.61759421,621.67,620.51,0.32231551]
[1740960469693,0.61759938,621.66,620.51,0.32231551]
[1740960469891,0.32171926,621.66,620.51,0.32231551]
[1740960470293,0.29583592,621.65,620.51,0.32231551]
[1740960471096,1.058,621.64,620.51,0.32231551]
[1740960471397,0.29583592,621.63,620.51,0.32231551]
[1740960473097,1.359,621.62,620.51,0.32231551]
[1740960473298,0.29583592,621.61,620.51,0.32231551]
[1740960474293,1.359,621.62,620.51,0.32231551]
[1740960474496,0.29587348,621.61,620.51,0.32231551]
[1740960474797,1.8273268,621.61,620.51,0.32231551]
[1740960474994,0.29587348,621.6,620.51,0.32231551]
[1740960475994,1.292,621.59,620.51,0.32231551]
[1740960478601,0.29582029,621.58,620.51,0.32231551]
[1740960479297,1.292,621.59,620.51,0.32231551]
[1740960482695,0.2958216,621.58,620.51,0.32231551]
[1740960483106,1.292,621.59,620.51,0.32231551]
[1740960483303,0.29582416,621.58,620.51,0.32231551]
[1740960483802,1.292,621.59,620.51,0.32231551]
[1740960485197,0.21,621.58,620.51,0.32231551]
[1740960488898,1.366,621.58,620.51,0.32231551]
[1740960489906,2.589,621.58,620.51,0.32231551]
[1740960490206,1.54523009,621.57,620.51,0.32231551]
[1740960490505,2.589,621.58,620.51,0.32231551]
[1740960491506,1.54608412,621.57,620.51,0.32231551]
[1740960491705,2.589,621.58,620.51,0.32231551]
[1740960493302,1.54744598,621.57,620.51,0.32231551]
[1740960494307,3.497,621.58,620.51,0.32231551]
[1740960497308,4.414,621.58,620.51,0.32231551]
[1740960499307,5.508,621.58,620.51,0.32231551]
[1740960509214,5.508,621.58,620.53,1.189564]
[1740960509612,5.508,621.58,620.55,0.32229473]
[1740960514520,1.55120872,621.57,620.55,0.32229473]
[1740960515223,2.073,621.58,620.55,0.32229473]
[1740960518026,1.84659918,621.57,620.55,0.32229473]
[1740960518226,1.84659918,621.56,620.55,0.32229473]
[1740960518428,1.84659918,621.55,620.55,0.32229473]
[1740960518625,1.84659918,621.54,620.55,0.32229473]
[1740960518824,1.84659918,621.53,620.55,0.32229473]
[1740960519025,1.55073587,621.52,620.55,0.32229473]
[1740960519225,1.87253278,621.51,619.98,1.189564]
[1740960519424,1.84670892,621.5,619.99,0.32258584]
[1740960519623,1.84670892,621.49,619.99,0.32258584]
[1740960519820,1.84670892,621.48,619.99,0.32258584]
[1740960520027,1.84670892,621.47,619.99,0.32258584]
[1740960520327,1.84670892,621.46,619.99,0.32258584]
[1740960520525,1.84670892,621.45,619.99,0.32258584]
[1740960520726,1.84670892,621.44,619.99,0.32258584]
[1740960521027,1.84670892,621.43,619.99,0.32258584]
[1740960521225,1.84306539,621.42,619.99,0.32258584]
[1740960521422,1.84306539,621.41,619.99,0.32258584]
[1740960521626,1.84306539,621.4,619.99,0.32258584]
[1740960521822,1.84306539,621.39,619.99,0.32258584]
[1740960522028,1.84306539,621.38,619.99,0.32258584]
[1740960522227,1.54709234,621.37,619.99,0.32258584]
[1740960522422,1.54709234,621.36,619.99,0.32258584]
[1740960522622,1.54709234,621.35,619.99,0.32258584]
[1740960522829,1.84306539,621.34,619.99,0.32258584]
[1740960523029,2.16495552,621.33,619.99,0.32258584]
[1740960523321,2.1649607,621.32,619.99,0.32258584]
[1740960523521,2.16496589,621.31,619.99,0.32258584]
[1740960523724,1.84306539,621.3,619.99,0.32258584]
[1740960523926,2.16497625,621.29,619.99,0.32258584]
[1740960524126,2.16498143,621.28,619.99,0.32258584]
[1740960524330,1.84306539,621.27,619.99,0.32258584]
[1740960524529,1.84306539,621.26,619.99,0.32258584]
[1740960524728,1.84306539,621.25,619.99,0.32258584]
[1740960524925,2.16500216,621.24,619.99,0.32258584]
[1740960525124,2.16115595,621.23,619.99,0.32258584]
[1740960525325,2.16116113,621.22,619.99,0.32258584]
[1740960525625,1.839214,621.21,619.99,0.32258584]
[1740960525822,1.839214,621.2,619.99,0.32258584]
[1740960526021,1.839214,621.19,619.99,0.32258584]
[1740960526225,1.839214,621.18,619.99,0.32258584]
[1740960526427,1.839214,621.17,619.99,0.32258584]
[1740960526627,1.839214,621.16,619.99,0.32258584]
[1740960526828,1.839214,621.15,619.99,0.32258584]
[1740960527023,1.839214,621.14,619.99,0.32258584]
[1740960527229,1.54324095,621.13,619.99,0.32258584]
[1740960527529,1.54324095,621.21,619.99,0.32258584]
[1740960527729,1.83934766,621.2,619.99,0.32258584]
[1740960528035,1.83934766,621.19,619.99,0.32258584]
[1740960528228,1.83934766,621.18,619.99,0.32258584]
[1740960528424,1.83934766,621.17,619.99,0.32258584]
[1740960528627,1.83934766,621.16,619.99,0.32258584]
[1740960528827,1.83934766,621.15,619.99,0.32258584]
[1740960529025,0.29610677,621.14,619.99,0.32258584]
[1740960529224,1.83934772,621.2,619.99,0.32258584]
[1740960529528,1.83935505,621.19,619.99,0.32258584]
[1740960529730,2.16132291,621.18,619.99,0.32258584]
[1740960529929,2.1613281,621.17,619.99,0.32258584]
[1740960530127,1.83935505,621.16,619.99,0.32258584]
[1740960530327,2.16133846,621.15,619.99,0.32258584]
[1740960530526,1.86522955,621.14,619.99,0.32258584]
[1740960530728,1.83937071,621.13,619.99,0.32258584]
[1740960530928,1.6139886,621.14,619.99,0.32258584]
[1740960530929,1.83937071,621.12,619.99,0.32258584]
[1740960531129,1.83937071,621.11,619.99,0.32258584]
[1740960531324,1.54324095,621.13,619.99,0.32258584]
[1740960531535,1.83936071,621.12,619.99,0.32258584]
[1740960531832,0.29611976,621.11,619.99,0.32258584]
[1740960532036,1.83936071,621.12,619.99,0.32258584]
[1740960532331,1.83938004,621.11,619.99,0.32258584]
[1740960532529,0.29613909,621.1,619.99,0.32258584]
[1740960532730,0.29613909,621.12,619.99,0.32258584]
[1740960532930,0.29613909,621.11,619.99,0.32258584]
[1740960533127,0.29613909,621.1,619.99,0.32258584]
[1740960533328,0.29613909,621.09,619.99,0.32258584]
[1740960533531,1.83938004,621.13,619.99,0.32258584]
[1740960533831,0.29613909,621.12,619.99,0.32258584]
[1740960534130,2.60124095,621.11,619.99,0.32258584]
[1740960534333,1.83938004,621.1,619.99,0.32258584]
[1740960534526,1.058,621.11,619.99,0.32258584]
[1740960534527,0.29614151,621.09,619.99,0.32258584]
[1740960534732,1.058,621.11,619.99,0.32258584]
[1740960534733,0.29614151,621.1,619.99,0.32258584]
[1740960534924,0.29614151,621.09,619.99,0.32258584]
[1740960535125,0.29614151,621.08,619.99,0.32258584]
[1740960535325,0.29614151,621.1,619.99,0.32258584]
[1740960535531,0.29614151,621.09,619.99,0.32258584]
[1740960535933,1.203,621.08,619.99,0.32258584]
[1740960536232,0.29614151,621.07,619.99,0.32258584]
[1740960536834,1.82957205,621.07,619.99,0.32258584]
[1740960537033,0.29614151,621.06,619.99,0.32258584]
[1740960537735,0.29614151,621.05,619.99,0.32258584]
[1740960537936,0.29614151,621.04,619.99,0.32258584]
[1740960538134,0.29614151,621.07,619.99,0.32258584]
[1740960538437,0.29614151,621.06,619.99,0.32258584]
[1740960538638,0.29612496,621.05,619.99,0.32258584]
[1740960538840,0.29612496,621.07,619.99,0.32258584]
[1740960539041,0.29612496,621.06,619.99,0.32258584]
[1740960539237,0.29612496,621.07,619.99,0.32258584]
[1740960539443,0.29612496,621.06,619.99,0.32258584]
[1740960539641,0.29612496,621.05,619.99,0.32258584]
[1740960539843,0.29612496,621.07,619.99,0.32258584]
[1740960540138,1.203,621.08,619.99,0.32258584]
[1740960543544,0.29607621,621.07,619.99,0.32258584]
[1740960544740,0.29614386,621.06,619.99,0.32258584]
[1740960544941,0.29614386,621.07,619.99,0.32258584]
[1740960545140,0.29614386,621.06,619.99,0.32258584]
[1740960545441,0.29614386,621.05,619.99,0.32258584]
[1740960545641,0.29614386,621.04,619.99,0.32258584]
[1740960545846,0.29614386,621.07,619.99,0.32258584]
[1740960546147,0.29614386,621.06,619.99,0.32258584]
[1740960546445,1.391,621.07,619.99,0.32258584]
[1740960546646,2.92124539,621.07,619.99,0.32258584]
[1740960547945,1.391,621.07,619.99,0.32258584]
[1740960550647,1.601,621.07,619.99,0.32258584]
[1740960551144,2.782,621.07,619.99,0.32258584]
[1740960565258,3.846,621.07,619.99,0.32258584]
[1740960566265,4.868,621.07,619.99,0.32258584]
[1740960575971,6.494,621.07,619.99,0.32258584]
[1740960594392,6.494,621.07,619.99,1.51214984]
[1740960595896,6.494,621.07,619.99,0.32258584]
[1740960596899,6.494,621.07,619.97,1.189564]
[1740960598397,6.494,621.07,620.08,1.189564]
[1740960601003,6.494,621.07,620.22,1.189564]
[1740960602602,6.494,621.07,619.9,2.66584585]
[1740960602603,6.494,621.07,620.43,1.189564]
[1740960605110,6.494,621.07,620.5,1.189564]
[1740960607714,6.494,621.07,620.41,1.189564]
[1740960609816,6.494,621.07,620.15,1.189564]
[1740960611815,6.494,621.07,619.98,1.189564]
[1740960613812,6.494,621.07,619.92,1.189564]
[1740960615617,6.494,621.07,619.59,2.67006475]
[1740960615618,6.494,621.07,620.12,1.189564]
[1740960617920,6.494,621.07,619.88,2.67006475]
[1740960617921,6.494,621.07,620.23,1.189564]
[1740960619319,6.494,621.07,620.19,1.189564]
[1740960621720,6.494,621.07,620.25,1.189564]
[1740960624423,6.494,621.07,620.32,1.189564]
[1740960624624,6.494,621.07,620.33,0.32240904]
[1740960625117,2.245,621.07,620.33,0.32240904]
[1740960626525,1.54873606,623.51,620.33,0.32240904]
[1740960626719,0.32084188,623.36,620.33,0.32240904]
[1740960626923,1.84401691,623.35,620.33,0.32240904]
[1740960627123,1.84260432,623.34,620.33,0.32240904]
[1740960627325,0.29528085,623.33,620.62,1.189564]
[1740960627524,0.29528085,623.35,620.62,1.189564]
[1740960628018,0.29528085,623.35,620.75,0.32219089]
[1740960628422,1.263,623.34,620.75,0.32219089]
[1740960628720,0.29528085,623.33,620.75,0.32219089]
[1740960629622,1.83328085,623.33,620.75,0.32219089]
[1740960629925,0.29528085,623.32,620.75,0.32219089]
[1740960630118,0.32086762,623.31,620.75,0.32219089]
[1740960630323,0.29528085,623.3,620.75,0.32219089]
[1740960630626,0.32087792,623.29,620.75,0.32219089]
[1740960630826,0.29528085,623.28,620.75,0.32219089]
[1740960631628,0.994,623.27,620.75,0.32219089]
[1740960631927,0.61617421,623.26,620.75,0.32219089]
[1740960632125,0.29528085,623.25,620.75,0.32219089]
[1740960632521,0.32090881,623.23,620.75,0.32219089]
[1740960632726,0.29528085,623.22,620.75,0.32219089]
[1740960632927,0.32090881,623.23,620.75,0.32219089]
[1740960632928,0.29528085,623.21,620.75,0.32219089]
[1740960633224,0.29528085,623.2,620.75,0.32219089]
[1740960633528,0.29528085,623.19,620.75,0.32219089]
[1740960633730,0.29528085,623.18,620.75,0.32219089]
[1740960634028,1.83614465,623.17,620.75,0.32219089]
[1740960634228,1.83614465,623.16,620.75,0.32219089]
[1740960634425,1.83614465,623.15,620.75,0.32219089]
[1740960634727,3.48714465,623.14,620.75,0.32219089]
[1740960634926,1.83614465,623.13,620.75,0.32219089]
[1740960635126,1.83614465,623.12,620.75,0.32219089]
[1740960635328,1.83614465,623.11,620.75,0.32219089]
[1740960635523,1.83614465,623.1,620.75,0.32219089]
[1740960635726,1.83580044,623.09,620.75,0.32219089]
[1740960635923,1.83580044,623.08,620.75,0.32219089]
[1740960636129,0.295373,623.07,620.75,0.32219089]
[1740960636424,0.32100152,623.05,620.75,0.32219089]
[1740960636629,1.83538751,623.04,620.75,0.32219089]
[1740960636820,1.83538751,623.03,620.75,0.32219089]
[1740960637020,1.83638585,623.02,620.75,0.32219089]
[1740960637228,0.32102728,623.0,620.75,0.32219089]
[1740960637529,1.83638585,622.99,620.75,0.32219089]
[1740960637723,2.15742344,622.98,620.75,0.32219089]
[1740960637926,2.15742859,622.97,620.75,0.32219089]
[1740960638130,1.83638585,622.96,620.75,0.32219089]
[1740960638330,1.83638585,622.95,620.75,0.32219089]
[1740960638525,1.83638585,622.94,620.75,0.32219089]
[1740960638722,1.83638585,622.93,620.75,0.32219089]
[1740960638923,0.295373,622.92,620.75,0.32219089]
[1740960639126,0.295373,622.91,620.75,0.32219089]
[1740960639329,1.8360054,622.95,620.75,0.32219089]
[1740960639527,0.295373,622.94,620.75,0.32219089]
[1740960639724,0.32106851,622.92,620.75,0.32219089]
[1740960639925,0.295373,622.91,620.75,0.32219089]
[1740960640329,0.32107882,622.9,620.75,0.32219089]
[1740960640625,1.83578974,622.89,620.75,0.32219089]
[1740960640828,0.32107882,622.9,620.75,0.32219089]
[1740960640829,0.295373,622.88,620.75,0.32219089]
[1740960641031,1.83522735,622.87,620.75,0.32219089]
[1740960641229,1.83522735,622.86,620.75,0.32219089]
[1740960641426,0.295373,622.85,620.75,0.32219089]
[1740960641630,0.295373,622.84,620.75,0.32219089]